bitfinex-derivatives/quotes_BTCF0:USTF0_20250503
["timestamp","ask_amount","ask_price","bid_price","bid_amount"]
[1746274531753,0.0309,95975.0,95974.0,1.81596252]
[1746274531967,0.0309,95975.0,95974.0,1.88086252]
[1746274532970,0.0339,95975.0,95974.0,1.88186252]
[1746274533271,0.006,95975.0,95974.0,1.88286252]
[1746274533569,0.08097434,95990.0,95982.0,0.0520795]
[1746274533769,0.0319,95987.0,95984.0,0.0520789]
[1746274533954,0.0319,95987.0,95986.0,0.2083116]
[1746274534158,0.0319,95987.0,95986.0,0.2583116]
[1746274534353,0.0319,95987.0,95986.0,0.2902116]
[1746274535159,0.0637,95987.0,95986.0,0.2902116]
[1746274535369,0.0687,95987.0,95986.0,0.2912116]
[1746274536867,0.0727,95987.0,95986.0,0.2922116]
[1746274537671,0.009,95987.0,95986.0,0.2922116]
[1746274538064,0.009,95987.0,95986.0,0.4102116]
[1746274539060,0.009,95987.0,95986.0,0.2922116]
[1746274544376,0.009,95987.0,95986.0,0.3251116]
[1746274545075,0.00156326,95995.0,95986.0,0.1168]
[1746274545261,0.0636,96005.0,96004.0,0.2082725]
[1746274545961,0.44027434,96008.0,96004.0,0.08]
[1746274545962,0.07947434,96008.0,96004.0,0.08]
[1746274546161,0.07947434,96008.0,96005.0,0.2082704]
[1746274546366,0.07947434,96008.0,96005.0,0.3494704]
[1746274546567,0.07947434,96010.0,96005.0,1.8494704]
[1746274547969,0.008,96006.0,96005.0,1.8504704]
[1746274548675,0.014,96006.0,96005.0,1.8514704]
[1746274555375,0.0452,96006.0,96005.0,1.8514704]
[1746274555577,0.0452,96006.0,96005.0,1.9139104]
[1746274561076,0.0452,96006.0,96005.0,1.8339104]
[1746274563082,0.0452,96006.0,96005.0,1.8439104]
[1746274572892,0.3608,96014.0,96013.0,0.208253]
[1746274573195,0.4788,96014.0,96013.0,0.228253]
[1746274573587,0.4788,96014.0,96013.0,0.208253]
[1746274573788,0.4788,96014.0,96013.0,0.270253]
[1746274574192,0.4878,96014.0,96013.0,0.271253]
[1746274574386,0.4878,96014.0,96013.0,0.291253]
[1746274574589,0.4878,96014.0,96013.0,0.271253]
[1746274574788,0.4878,96014.0,96013.0,0.341253]
[1746274575197,0.3698,96014.0,96013.0,0.341253]
[1746274575397,0.3758,96014.0,96013.0,0.342253]
[1746274576190,0.4938,96014.0,96013.0,0.342253]
[1746274577397,0.3758,96014.0,96013.0,0.342253]
[1746274580800,0.5840508,96014.0,96013.0,0.342253]
[1746274580992,0.3758,96014.0,96013.0,0.334693]
[1746274581499,0.4399,96014.0,96013.0,0.334693]
[1746274582201,0.4399,96014.0,96013.0,0.12644]
[1746274582694,0.4399,96014.0,96013.0,0.334693]
[1746274587694,0.6481508,96014.0,96013.0,0.334693]
[1746274592308,0.6157508,96014.0,96013.0,0.364693]
[1746274593809,0.5840508,96014.0,96013.0,0.364693]
[1746274598115,0.3758,96014.0,96013.0,0.364693]
[1746274598815,0.015,96014.0,96013.0,0.364693]
[1746274599331,0.07947434,96018.0,96017.0,0.2082443]
[1746274599536,0.07947434,96018.0,96017.0,0.2982443]
[1746274600223,0.07947434,96018.0,96017.0,0.3633443]
[1746274601037,0.09147434,96018.0,96017.0,0.3643443]
[1746274601930,0.012,96018.0,96017.0,0.3643443]
[1746274606040,0.009,96018.0,96017.0,0.3633443]
[1746274607638,0.004,96018.0,96017.0,0.3633443]
[1746274607941,0.008,96018.0,96017.0,0.3633443]
[1746274609145,0.008,96018.0,96017.0,0.4813443]
[1746274609536,0.00306284,96025.0,96024.0,0.2082291]
[1746274609737,0.00306284,96025.0,96024.0,0.7190291]
[1746274610740,0.00906284,96025.0,96024.0,2.2190291]
[1746274611042,0.07947434,96029.0,96028.0,0.2082205]
[1746274611243,0.07947434,96029.0,96028.0,0.3706205]
[1746274611939,0.07947434,96029.0,96028.0,0.4356205]
[1746274612138,0.08447434,96029.0,96028.0,0.4356205]
[1746274612741,0.08647434,96029.0,96028.0,0.4356205]
[1746274614737,0.08547434,96029.0,96028.0,0.4356205]
[1746274615140,0.006,96029.0,96028.0,0.4356205]
[1746274623758,0.0373,96029.0,96028.0,0.4356205]
[1746274629262,0.0373,96029.0,96028.0,0.4023205]
[1746274629660,0.068,96029.0,96028.0,0.4023205]
[1746274630058,0.2762183,96029.0,96028.0,0.4023205]
[1746274630260,0.068,96029.0,96028.0,0.4023205]
[1746274642867,0.068,96029.0,96028.0,0.3399205]
[1746274643070,0.068,96029.0,96028.0,0.4023205]
[1746274643969,0.0373,96029.0,96028.0,0.4023205]
[1746274648771,0.006,96029.0,96028.0,0.4023205]
[1746274652869,0.006,96029.0,96028.0,0.3399205]
[1746274653074,0.006,96029.0,96028.0,0.4023205]
[1746274653768,0.2142183,96029.0,96028.0,0.0317]
[1746274654072,0.3978183,96029.0,96028.0,0.0317]
[1746274654773,0.3978183,96029.0,96028.0,0.2399205]
[1746274674385,0.3655183,96029.0,96028.0,0.2399205]
[1746274675388,0.3655183,96029.0,96028.0,0.3499205]
[1746274676590,0.3655183,96029.0,96028.0,0.2399205]
[1746274679105,0.2475183,96029.0,96028.0,0.2399205]
[1746274680105,0.3655183,96029.0,96028.0,0.2399205]
[1746274683202,0.2475183,96029.0,96028.0,0.2399205]
[1746274684104,0.3655183,96029.0,96028.0,0.2399205]
[1746274684808,0.44499264,96029.0,96028.0,0.2399205]
[1746274687114,0.80579264,96029.0,96028.0,0.2399205]
[1746274687410,0.68779264,96029.0,96028.0,0.2399205]
[1746274688503,0.65449264,96029.0,96028.0,0.2399205]
[1746274690014,0.5750183,96029.0,96028.0,0.2399205]
[1746274690609,0.5750183,96029.0,96028.0,0.3399205]
[1746274695407,0.5710183,96029.0,96028.0,0.3399205]
[1746274695611,0.5740183,96029.0,96028.0,0.3399205]
[1746274696118,0.5710183,96029.0,96028.0,0.3399205]
[1746274696320,0.5740183,96029.0,96028.0,0.3399205]
[1746274698224,0.5740183,96029.0,96028.0,0.2399205]
[1746274704032,0.65363945,96029.0,96028.0,0.2399205]
[1746274704932,0.65363945,96029.0,96028.0,0.3599205]
[1746274707636,0.65363945,96029.0,96028.0,0.2399205]
[1746274708638,0.5740183,96029.0,96028.0,0.2399205]
[1746274712034,0.2132183,96029.0,96028.0,0.2399205]
[1746274712239,0.5740183,96029.0,96028.0,0.2399205]
[1746274718539,0.5740183,96029.0,96027.0,0.032]
[1746274718741,0.2391205,96028.0,96027.0,0.2402226]
[1746274721039,0.2421205,96028.0,96027.0,0.2402226]
[1746274721442,0.2441205,96028.0,96027.0,0.2402226]
[1746274721642,0.2441205,96028.0,96027.0,0.2731226]
[1746274726544,0.6049205,96028.0,96027.0,0.2731226]
[1746274745752,0.6049205,96028.0,96027.0,0.3631226]
[1746274750345,0.6049205,96028.0,96027.0,0.2731226]
[1746274755763,0.208227,96025.0,96024.0,0.00779645]
[1746274755974,0.208227,96025.0,96024.0,0.2082291]
[1746274756647,0.270327,96025.0,96024.0,0.2082291]
[1746274757066,0.272327,96025.0,96024.0,0.2082291]
[1746274757375,0.275327,96025.0,96024.0,0.2082291]
[1746274758267,0.636127,96025.0,96024.0,0.2082291]
[1746274759175,0.636127,96025.0,96024.0,0.24705055]
[1746274760364,0.275327,96025.0,96024.0,0.24705055]
[1746274760568,0.636127,96025.0,96024.0,0.24705055]
[1746274761973,0.686127,96025.0,96024.0,0.24705055]
[1746274762677,0.655127,96025.0,96024.0,0.24705055]
[1746274763176,0.605127,96025.0,96024.0,0.24705055]
[1746274766281,0.635127,96025.0,96024.0,0.24705055]
[1746274767879,0.635127,96025.0,96024.0,0.09192483]
[1746274768883,0.635127,96025.0,96024.0,0.09959966]
[1746274770880,0.604027,96025.0,96024.0,0.09959966]
[1746274771082,0.644027,96025.0,96024.0,0.09959966]
[1746274771986,0.644027,96025.0,96024.0,0.00767483]
[1746274772282,0.644027,96025.0,96024.0,0.2401291]
[1746274772678,0.644027,96025.0,96024.0,0.0319]
[1746274772982,0.644027,96025.0,96024.0,0.2401291]
[1746274773977,0.644027,96025.0,96024.0,0.2477805]
[1746274778583,0.4358,96025.0,96024.0,0.2477805]
[1746274778788,0.3958,96025.0,96024.0,0.5077805]
[1746274779586,0.604027,96025.0,96024.0,0.5077805]
[1746274781187,0.604027,96025.0,96024.0,0.6257805]
[1746274782187,0.604027,96025.0,96024.0,0.5077805]
[1746274783391,0.3958,96025.0,96024.0,0.5077805]
[1746274784190,0.3958,96025.0,96024.0,0.6257805]
[1746274784990,0.604027,96025.0,96024.0,0.6257805]
[1746274785193,0.604027,96025.0,96024.0,0.5077805]
[1746274787893,0.3958,96025.0,96024.0,0.5077805]
[1746274789687,0.604027,96025.0,96024.0,0.5077805]
[1746274792897,0.3958,96025.0,96024.0,0.5077805]
[1746274793694,0.604027,96025.0,96024.0,0.5077805]
[1746274798795,0.3958,96025.0,96024.0,0.5077805]
[1746274800094,0.3958,96025.0,96024.0,0.6257805]
[1746274800984,0.604027,96025.0,96024.0,0.6257805]
[1746274801282,0.604027,96025.0,96024.0,0.5077805]
[1746274802687,0.3958,96025.0,96024.0,0.5077805]
[1746274804799,0.035,96025.0,96024.0,0.5077805]
[1746274806898,0.005,96025.0,96024.0,0.9727205]
[1746274807200,0.005,96025.0,96024.0,1.14090918]
[1746274807401,0.005,96025.0,96024.0,2.60096302]
[1746274807601,0.005,96025.0,96024.0,2.65113098]
[1746274808288,0.002,96025.0,96024.0,2.65113098]
[1746274808495,0.005,96025.0,96024.0,2.65113098]
[1746274809097,0.0314,96035.0,96034.0,0.2082075]
[1746274809298,0.0314,96035.0,96034.0,0.8013675]
[1746274810099,0.0314,96035.0,96034.0,0.9832675]
[1746274810298,0.0314,96035.0,96034.0,1.0873955]
[1746274810299,0.005,96035.0,96034.0,1.0873955]
[1746274810901,0.005,96035.0,96034.0,2.5873955]
[1746274811203,0.007,96035.0,96034.0,2.5873955]
[1746274814804,0.002,96035.0,96034.0,2.5873955]
[1746274814997,0.005,96035.0,96034.0,2.5873955]
[1746274816503,0.0355,96035.0,96034.0,2.5873955]
[1746274817705,0.0355,96035.0,96034.0,2.4832675]
[1746274821899,0.0355,96035.0,96034.0,2.1224675]
[1746274822103,0.0355,96035.0,96034.0,2.4832675]
[1746274826014,0.0355,96035.0,96034.0,2.4209075]
[1746274826220,0.0355,96035.0,96034.0,2.4849875]
[1746274833119,0.0355,96035.0,96034.0,2.3669875]
[1746274834116,0.0355,96035.0,96034.0,2.4849875]
[1746274836215,0.0355,96035.0,96034.0,2.3669875]
[1746274836413,0.0626,96044.0,96043.0,0.2081879]
[1746274836620,0.0015,96060.0,96059.0,0.2081533]
[1746274837115,0.3695,96060.0,96059.0,0.2081533]
[1746274837316,0.1195,96060.0,96059.0,0.2081533]
[1746274837819,0.1195,96060.0,96059.0,0.2481533]
[1746274838012,0.1508,96060.0,96059.0,0.2481533]
[1746274839212,0.1528,96060.0,96059.0,0.2481533]
[1746274839614,0.1831,96060.0,96059.0,0.2481533]
[1746274845121,0.0652886,96060.0,96059.0,0.2481533]
[1746274846033,0.0339886,96060.0,96059.0,0.2481533]
[1746274846635,0.0339886,96060.0,96059.0,0.3103533]
[1746274848232,0.0339886,96060.0,96059.0,0.4283533]
[1746274849029,0.0339886,96060.0,96059.0,1.9283533]
[1746274849234,0.001,96066.0,96065.0,0.2081403]
[1746274849432,0.001,96066.0,96065.0,0.7089403]
[1746274849937,0.001,96066.0,96065.0,0.72443197]
[1746274850135,0.001,96066.0,96065.0,0.81683197]
[1746274850637,0.003,96066.0,96065.0,0.8013403]
[1746274851535,0.003,96066.0,96065.0,0.9054363]
[1746274851932,0.003,96066.0,96065.0,2.4054363]
[1746274852139,0.07190221,96080.0,96079.0,0.2081099]
[1746274852348,0.0327,96085.0,96084.0,0.2080991]
[1746274852642,0.0327,96085.0,96084.0,0.03137147]
[1746274852837,0.3448729,96085.0,96084.0,0.03137147]
[1746274853147,0.4628729,96085.0,96084.0,0.03137147]
[1746274853444,0.254776,96085.0,96084.0,0.03137147]
[1746274853839,0.254776,96085.0,96084.0,0.23947057]
[1746274854240,0.254776,96085.0,96084.0,0.23973757]
[1746274854440,0.284876,96085.0,96084.0,0.22386119]
[1746274854749,0.284876,96085.0,96084.0,0.2080991]
[1746274856044,0.1808,96085.0,96084.0,0.2080991]
[1746274856235,0.3888969,96085.0,96084.0,0.2080991]
[1746274856842,0.1808,96085.0,96084.0,0.2080991]
[1746274861553,0.3888969,96085.0,96084.0,0.2080991]
[1746274864561,0.2081034,96082.0,96081.0,0.00773061]
[1746274864748,0.2081034,96082.0,96081.0,0.2081056]
[1746274865048,0.3261034,96082.0,96081.0,0.2081056]
[1746274865254,0.3887034,96082.0,96081.0,0.2081056]
[1746274865455,0.3887034,96082.0,96081.0,0.21594472]
[1746274870561,0.3887034,96082.0,96081.0,0.24654472]
[1746274870764,0.1806,96082.0,96081.0,0.24654472]
[1746274871064,0.3887034,96082.0,96081.0,0.24654472]
[1746274871263,0.3586034,96082.0,96081.0,0.24654472]
[1746274871464,0.3586034,96082.0,96081.0,0.27974472]
[1746274873562,0.4128222,96089.0,96081.0,0.27974472]
[1746274873563,0.1,96100.0,96082.0,0.0520253]
[1746274873760,0.1,96100.0,96094.0,0.2080775]
[1746274873961,0.0520173,96098.0,96094.0,0.2580775]
[1746274874263,0.3578753,96095.0,96094.0,0.2080775]
[1746274874655,0.3578753,96095.0,96056.0,0.0520397]
[1746274874656,0.743864,96095.0,96056.0,0.0520397]
[1746274874854,0.3608,96063.0,96062.0,0.2081468]
[1746274875565,0.3608,96063.0,96062.0,0.21585478]
[1746274876257,0.3608,96063.0,96062.0,0.21685478]
[1746274877061,0.5689446,96063.0,96062.0,0.21685478]
[1746274877367,0.5689446,96063.0,96062.0,0.21785478]
[1746274877561,0.3608,96063.0,96062.0,0.21785478]
[1746274877872,0.3608,96063.0,96062.0,0.21585478]
[1746274878356,0.3608,96063.0,96062.0,0.27855478]
[1746274885074,0.5119,96063.0,96062.0,0.27855478]
[1746274886278,0.3939,96063.0,96062.0,0.27855478]
[1746274892663,0.3608,96063.0,96062.0,0.31855478]
[1746274892865,0.3608,96063.0,96062.0,0.27855478]
[1746274893477,0.3608,96063.0,96062.0,0.32855478]
[1746274893874,0.3608,96063.0,96062.0,0.27855478]
[1746274895477,0.3608,96063.0,96062.0,0.30855478]
[1746274905584,0.0325,96074.0,96062.0,0.46120798]
[1746274905782,0.0305,96073.0,96072.0,0.2081251]
[1746274906085,0.0305,96073.0,96072.0,0.6389251]
[1746274909092,0.0305,96073.0,96072.0,2.1389251]
[1746274910482,0.0305,96073.0,96072.0,2.0689251]
[1746274911391,0.0305,96073.0,96072.0,2.2389251]
[1746274924400,0.0612,96073.0,96072.0,2.2389251]
[1746274925703,0.2693229,96073.0,96072.0,0.3608]
[1746274926195,0.3873229,96073.0,96072.0,0.3608]
[1746274926594,0.3873229,96073.0,96072.0,0.5689251]
[1746274928999,0.3873229,96073.0,96072.0,0.2081251]
[1746274930291,0.2693229,96073.0,96072.0,0.2081251]
[1746274930488,0.0612,96073.0,96072.0,0.2081251]
[1746274930799,0.0612,96073.0,96072.0,0.2724251]
[1746274932302,0.0612,96073.0,96072.0,0.4424251]
[1746274937091,0.0612,96073.0,96072.0,0.2396251]
[1746274940511,0.0305,96073.0,96072.0,0.2396251]
[1746274940711,0.0305,96073.0,96072.0,0.2714251]
[1746274941511,0.0305,96073.0,96072.0,1.7396251]
[1746274942602,0.0305,96073.0,96072.0,1.7081251]
[1746274943311,0.1485,96073.0,96072.0,1.7081251]
[1746274943503,0.1485,96073.0,96072.0,0.2081251]
[1746274943802,0.3566229,96073.0,96072.0,0.2081251]
[1746274944209,0.2386229,96073.0,96072.0,0.2081251]
[1746274945202,0.3566229,96073.0,96072.0,0.2081251]
[1746274948213,0.2386229,96073.0,96072.0,0.2081251]
[1746274954016,0.0305,96073.0,96072.0,0.2081251]
[1746274954414,0.2386229,96073.0,96072.0,0.2081251]
[1746274956912,0.2386229,96073.0,96072.0,0.2681251]
[1746274958507,0.2386229,96073.0,96072.0,0.2081251]
[1746274959006,0.2692229,96073.0,96072.0,0.2081251]
[1746274960218,0.2692229,96073.0,96072.0,0.2410251]
[1746274961619,0.2692229,96073.0,96072.0,0.2081251]
[1746274962214,0.3872229,96073.0,96072.0,0.2081251]
[1746274963115,0.2081294,96071.0,96070.0,0.2081285]
[1746274963511,0.2695294,96071.0,96070.0,0.2081285]
[1746274965613,0.2081446,96065.0,96064.0,0.2081408]
[1746274966419,0.2707446,96065.0,96064.0,0.2081408]
[1746274966615,0.2707446,96065.0,96064.0,0.2732408]
[1746274970214,0.2707446,96065.0,96064.0,0.2722408]
[1746274973624,0.2081446,96065.0,96064.0,0.2722408]
[1746274974223,0.2692446,96065.0,96064.0,0.2712408]
[1746274979527,0.0611,96065.0,96064.0,0.2712408]
[1746274980437,0.2692403,96065.0,96064.0,0.2712408]
[1746274983534,0.0611,96065.0,96064.0,0.2712408]
[1746274984642,0.2692403,96065.0,96064.0,0.2712408]
[1746274984934,0.0611,96065.0,96064.0,0.2712408]
[1746274985835,0.2692403,96065.0,96064.0,0.2071408]
[1746274987131,0.2081424,96064.0,96063.0,0.2382443]
[1746274987334,0.2081446,96063.0,96062.0,0.00770798]
[1746274987531,0.2602045,96056.0,96055.0,0.0520402]
[1746274987733,0.6210045,96056.0,96055.0,0.0520402]
[1746274987932,0.7174045,96056.0,96055.0,0.0520402]
[1746274988139,0.8354045,96056.0,96055.0,0.0520402]
[1746274988638,0.8354045,96056.0,96055.0,0.2602021]
[1746274988842,0.8354045,96056.0,96055.0,0.26804673]
[1746274989444,0.7174045,96056.0,96055.0,0.26804673]
[1746274990039,0.7174045,96056.0,96055.0,0.26904673]
[1746274993339,0.7174045,96056.0,96055.0,0.26804673]
[1746274993837,0.7174045,96056.0,96050.0,0.1593343]
[1746274993838,0.2081706,96051.0,96050.0,0.1593343]
[1746274994037,0.2602342,96045.0,96044.0,0.0520463]
[1746274994242,0.2602342,96045.0,96044.0,0.2602321]
[1746274994442,0.2924342,96045.0,96044.0,0.2081858]
[1746274994644,0.3556342,96045.0,96044.0,0.2081858]
[1746274995343,0.2081879,96043.0,96042.0,0.00156181]
[1746274995743,0.3123079,96043.0,96042.0,0.00156181]
[1746274996043,0.3738079,96043.0,96042.0,0.00156181]
[1746274996243,0.4918079,96043.0,96042.0,0.00156181]
[1746274996634,0.50198646,96043.0,96042.0,0.00927731]
[1746274996834,0.50198646,96043.0,96042.0,0.00156181]
[1746274998343,0.86278646,96043.0,96042.0,0.00156181]
[1746275000135,0.86278646,96043.0,96042.0,0.00948495]
[1746275000838,0.2082031,96036.0,96035.0,0.00104128]
[1746275001245,0.3262031,96036.0,96035.0,0.00104128]
[1746275001736,0.3889031,96036.0,96035.0,0.00104128]
[1746275002447,0.3889031,96036.0,96035.0,0.20924658]
[1746275002851,0.3889031,96036.0,96035.0,0.27484658]
[1746275003953,0.3889031,96036.0,96035.0,0.06664128]
[1746275004250,0.3889031,96036.0,96035.0,0.07428719]
[1746275004456,0.3889031,96036.0,96035.0,0.28249249]
[1746275004950,0.3889031,96036.0,96035.0,0.00868719]
[1746275011853,0.0520529,96032.0,96011.0,0.01042361]
[1746275012045,0.2082226,96027.0,96026.0,0.0302]
[1746275012353,0.5690226,96027.0,96026.0,0.0302]
[1746275012549,0.5690226,96027.0,96026.0,0.0608]
[1746275012945,0.6338226,96027.0,96026.0,0.0608]
[1746275014856,0.5690057,96038.0,96037.0,0.208201]
[1746275015151,0.5690057,96038.0,96037.0,0.446201]
[1746275016257,0.5690057,96038.0,96037.0,0.328201]
[1746275018458,0.5690057,96038.0,96037.0,0.208201]
[1746275018659,0.2082031,96036.0,96035.0,0.3022053]
[1746275021955,0.2082096,96034.0,96033.0,0.2082078]
[1746275022459,0.2691096,96034.0,96033.0,0.2390078]
[1746275023150,0.2691096,96034.0,96033.0,0.2710078]
[1746275026463,0.2388096,96034.0,96033.0,0.2710078]
[1746275028351,0.2717096,96034.0,96033.0,0.2710078]
[1746275029060,0.2717096,96034.0,96033.0,0.2390078]
[1746275029266,0.208214,96032.0,96031.0,0.2082126]
[1746275029660,0.274114,96032.0,96031.0,0.2082126]
[1746275029971,0.274114,96032.0,96031.0,0.2388126]
[1746275031167,0.274114,96032.0,96031.0,0.2693126]
[1746275047573,0.241214,96032.0,96031.0,0.0306]
[1746275047773,0.271514,96032.0,96031.0,0.0306]
[1746275048476,0.271514,96032.0,96031.0,0.238814]
[1746275049486,0.271514,96032.0,96031.0,0.0306]
[1746275051074,0.632314,96032.0,96031.0,0.0306]
[1746275057581,0.2082226,96027.0,96026.0,0.0309]
[1746275057782,0.2082226,96027.0,96026.0,0.061]
[1746275058470,0.2736226,96027.0,96026.0,0.061]
[1746275060481,0.28422782,96027.0,96026.0,0.061]
[1746275062089,0.28422782,96027.0,96026.0,0.0301]
[1746275062387,0.64502782,96027.0,96026.0,0.0301]
[1746275063990,0.72450557,96027.0,96026.0,0.0301]
[1746275065690,0.2082508,96014.0,96013.0,0.4300286]
[1746275066083,0.2082508,96014.0,96013.0,0.5480286]
[1746275066288,0.2082508,96014.0,96013.0,0.4439028]
[1746275066789,0.2082508,96014.0,96013.0,0.4459028]
[1746275067375,0.2082508,96014.0,96013.0,0.5084028]
[1746275067588,0.2082508,96014.0,96013.0,0.2491]
[1746275067788,0.2082508,96014.0,96013.0,0.457353]
[1746275069193,0.2082508,96014.0,96013.0,0.34718392]
[1746275069587,0.2082508,96014.0,96013.0,0.34618392]
[1746275069891,0.2082508,96014.0,96013.0,0.34718392]
[1746275070292,0.2082508,96014.0,96013.0,0.34518392]
[1746275072094,0.2082508,96014.0,96013.0,0.46318392]
[1746275073291,0.2082508,96014.0,96013.0,0.39758392]
[1746275075199,0.2082508,96014.0,96013.0,0.27958392]
[1746275091006,0.13153635,96022.0,96013.0,0.07133092]
[1746275091305,0.07947775,96022.0,96021.0,0.2082356]
[1746275091605,0.07947775,96022.0,96021.0,0.3982356]
[1746275091806,0.07947775,96022.0,96021.0,1.8982356]
[1746275092197,0.07947775,96022.0,96021.0,2.1116356]
[1746275093108,0.10624543,96031.0,96030.0,0.2082161]
[1746275093298,0.10624543,96031.0,96030.0,0.3382161]
[1746275094111,0.10624543,96031.0,96030.0,0.5516161]
[1746275095108,0.6019947,96040.0,96039.0,0.2081966]
[1746275095407,0.6019947,96040.0,96037.0,0.0520498]
[1746275095707,0.6019947,96040.0,96039.0,0.2081966]
[1746275095893,0.6019947,96040.0,96039.0,0.2381966]
[1746275096099,0.6019947,96040.0,96039.0,0.3306966]
[1746275097001,0.6019947,96040.0,96039.0,0.3006966]
[1746275099203,0.3938,96040.0,96039.0,0.3006966]
[1746275099404,0.6019945,96040.0,96039.0,0.3006966]
[1746275100509,0.033,96040.0,96039.0,0.3606966]
[1746275101212,0.033,96040.0,96039.0,0.4786966]
[1746275104413,0.2411945,96040.0,96039.0,0.4786966]
[1746275105011,0.033,96040.0,96039.0,0.4786966]
[1746275106114,0.2411945,96040.0,96039.0,0.4786966]
[1746275108608,0.2411945,96040.0,96039.0,0.4186966]
[1746275109220,0.2411945,96040.0,96039.0,0.3261966]
[1746275109413,0.2411945,96040.0,96039.0,0.118]
[1746275109917,0.2411945,96040.0,96039.0,0.3261966]
[1746275110117,0.2411945,96040.0,96039.0,0.2081966]
[1746275111719,0.2082053,96035.0,96034.0,0.06432]
[1746275111910,0.5690053,96035.0,96034.0,0.06432]
[1746275112107,0.5690053,96035.0,96022.0,0.0520582]
[1746275112108,0.3608,96035.0,96022.0,0.0520582]
[1746275112311,0.2082378,96020.0,96019.0,0.2602916]
[1746275113311,0.2082378,96020.0,96019.0,0.2931916]
[1746275114422,0.2082378,96020.0,96019.0,0.2941916]
[1746275114615,0.2737378,96020.0,96019.0,0.2941916]
[1746275114807,0.2737378,96020.0,96019.0,0.11845646]
[1746275115618,0.2737378,96020.0,96019.0,0.17051626]
[1746275117115,0.2737378,96020.0,96019.0,0.13761626]
[1746275131329,0.2737378,96020.0,96019.0,0.20221626]
[1746275152854,0.2737378,96020.0,96019.0,0.001]
[1746275153052,0.3917378,96020.0,96019.0,0.001]
[1746275154047,0.3917378,96020.0,96019.0,0.20924]
[1746275154355,0.2082443,96017.0,96016.0,0.2082452]
[1746275155147,0.2719443,96017.0,96016.0,0.2082452]
[1746275155547,0.2719443,96017.0,96016.0,0.2092452]
[1746275157956,0.2719443,96017.0,96016.0,0.2082452]
[1746275163458,0.3040443,96017.0,96016.0,0.2082452]
[1746275166561,0.2719443,96017.0,96016.0,0.2082452]
[1746275175363,0.2719443,96017.0,96016.0,0.2388452]
[1746275185868,0.2719443,96017.0,96016.0,0.2082452]
[1746275188172,0.2719443,96017.0,96016.0,0.2397452]
[1746275193269,0.2719443,96017.0,96016.0,0.0315]
[1746275193659,0.2719443,96017.0,96016.0,0.2397465]
[1746275198074,0.28229276,96017.0,96016.0,0.2397465]
[1746275198777,0.2719443,96017.0,96016.0,0.2397465]
[1746275203981,0.2719443,96017.0,96016.0,0.09918448]
[1746275207779,0.2719443,96017.0,96016.0,0.13198448]
[1746275207978,0.2414443,96017.0,96016.0,0.13198448]
[1746275208570,0.2414443,96017.0,96016.0,0.16198448]
[1746275208778,0.2414443,96017.0,96016.0,0.13198448]
[1746275210987,0.2414443,96017.0,96016.0,0.15198448]
[1746275211180,0.2414443,96017.0,96016.0,0.13198448]
[1746275211881,0.2414443,96017.0,96016.0,0.15198448]
[1746275212083,0.3608,96018.0,96017.0,0.2082443]
[1746275212281,0.0520498,96038.0,96031.0,0.208214]
[1746275212479,0.31445723,96032.0,96031.0,0.218214]
[1746275213085,0.31445723,96032.0,96031.0,0.326214]
[1746275213485,0.31445723,96032.0,96031.0,0.399514]
[1746275215088,0.2082118,96032.0,96031.0,0.399514]
[1746275217596,0.2082118,96032.0,96031.0,0.430114]
[1746275220887,0.2082118,96032.0,96031.0,0.396814]
[1746275221089,0.2409118,96032.0,96031.0,0.396814]
[1746275221287,0.2409118,96032.0,96028.0,1.5312]
[1746275221288,0.2082183,96029.0,96028.0,1.7082199]
[1746275221486,0.2082183,96029.0,96028.0,0.2082199]
[1746275221487,0.5690183,96029.0,96028.0,0.2082199]
[1746275221687,0.208227,96026.0,96025.0,0.2082264]
[1746275222097,0.271727,96026.0,96025.0,1.7413264]
[1746275223295,0.271727,96026.0,96025.0,0.2413264]
[1746275223798,0.271727,96026.0,96025.0,0.2082264]
[1746275224095,0.3123609,96021.0,96020.0,0.0520593]
[1746275224296,0.3123609,96021.0,96020.0,0.0820593]
[1746275224497,0.3123609,96021.0,96020.0,1.5820593]
[1746275225397,0.3123609,96021.0,96020.0,1.5520593]
[1746275225599,0.3123609,96021.0,96020.0,1.7602971]
[1746275225788,0.3123609,96021.0,96020.0,1.7927971]
[1746275226190,0.3123609,96021.0,96020.0,1.8243971]
[1746275226795,0.2603011,96021.0,96020.0,1.8243971]
[1746275228098,0.2603011,96021.0,96020.0,1.7927971]
[1746275229600,0.2082422,96021.0,96020.0,1.7927971]
[1746275229799,0.2082328,96023.0,96022.0,0.2082313]
[1746275230197,0.2747328,96023.0,96022.0,0.2082313]
[1746275233404,0.0665,96023.0,96022.0,0.2082313]
[1746275234107,0.2414313,96023.0,96022.0,0.2082313]
[1746275241508,0.0332,96023.0,96022.0,0.2082313]
[1746275241703,0.0332,96023.0,96022.0,0.2397313]
[1746275242011,0.2414313,96023.0,96022.0,0.2397313]
[1746275242211,0.2734313,96023.0,96022.0,0.2397313]
[1746275244012,0.2734313,96023.0,96022.0,0.2082313]
[1746275246713,0.2734313,96023.0,96022.0,0.2398313]
[1746275246905,0.2734313,96023.0,96022.0,0.2705313]
[1746275248815,0.0652,96023.0,96022.0,0.2705313]
[1746275249119,0.0652,96023.0,96022.0,0.3885313]
[1746275249413,0.0332,96023.0,96022.0,0.3885313]
[1746275250104,0.0332,96023.0,96022.0,0.2705313]
[1746275250814,0.0332,96023.0,96022.0,0.2805313]
[1746275251005,0.2414313,96023.0,96022.0,0.2805313]
[1746275251313,0.2414313,96023.0,96022.0,0.2705313]
[1746275252013,0.0332,96023.0,96022.0,0.2705313]
[1746275252210,0.3608,96026.0,96025.0,0.208227]
[1746275252415,0.07964009,96028.0,96027.0,0.2082226]
[1746275252615,0.07964009,96028.0,96027.0,0.2482226]
[1746275252915,0.07964009,96028.0,96027.0,1.7482226]
[1746275253115,0.07964009,96028.0,96027.0,1.8970226]
[1746275253320,0.07964009,96028.0,96027.0,1.9607226]
[1746275254112,0.07964009,96028.0,96027.0,1.9207226]
[1746275254316,0.07964009,96028.0,96027.0,1.7125]
[1746275254619,0.07964009,96028.0,96027.0,1.9607226]
[1746275256011,0.2082122,96032.0,96031.0,0.208214]
[1746275256923,0.2082097,96033.0,96032.0,0.26026]
[1746275257220,0.2082097,96033.0,96032.0,0.29326]
[1746275257413,0.2082097,96033.0,96032.0,0.32436]
[1746275257614,0.2394067,96035.0,96034.0,0.2082075]
[1746275268025,0.2082067,96035.0,96034.0,0.2082075]
[1746275268323,0.2082067,96035.0,96034.0,0.2482075]
[1746275275621,0.2082067,96035.0,96034.0,0.2082075]